[Event "Chess Festival Groningen 2023 | A"]
[Site "Groningen, Netherlands"]
[Date "2023.12.28"]
[Round "7.22"]
[White "Labruyere, Roger"]
[Black "Boeren, Jurriaan"]
[Result "1/2-1/2"]
[TimeControl "90min/40moves + 30min + 30sec/move"]
[WhiteElo "2208"]
[BlackElo "2102"]

1. d4 {[%clk 01:30:59]} Nf6 {[%clk 01:30:54]} 2. c4 {[%clk 01:31:25]} e6 {[%clk
01:31:20]} 3. Nc3 {[%clk 01:31:53]} d5 {[%clk 01:31:44]} {[%emt 00:00:09]} 4.
Nf3 {[%clk 01:32:17]} {[%emt 00:00:15]} a6 {[%clk 01:31:42]} {[%emt 00:00:19]}
5. cxd5 {[%clk 01:32:41]} {[%emt 00:00:07]} exd5 {[%clk 01:32:08]} {[%emt
00:00:05]} 6. Bg5 {[%clk 01:33:03]} {[%emt 00:00:25]} Be6 {[%clk 01:31:54]}
{[%emt 00:00:27]} 7. e3 {[%clk 01:33:26]} {[%emt 00:00:12]} Nbd7 {[%clk
01:32:04]} {[%emt 00:00:12]} 8. Bd3 {[%clk 01:33:50]} {[%emt 00:00:07]} Bd6
{[%clk 01:32:26]} {[%emt 00:00:08]} 9. O-O {[%clk 01:33:25]} {[%emt 00:00:57]}
c6 {[%clk 01:32:45]} {[%emt 00:00:08]} 10. Ne2 {[%clk 01:32:24]} {[%emt
00:01:38]} h6 {[%clk 01:28:31]} {[%emt 00:04:41]} 11. Bf4 {[%clk 01:30:58]}
{[%emt 00:01:50]} Qc7 {[%clk 01:26:41]} {[%emt 00:02:21]} 12. b4 {[%clk
01:29:18]} {[%emt 00:02:10]} O-O {[%clk 01:23:00]} {[%emt 00:04:16]} 13. a4
{[%clk 01:28:53]} {[%emt 00:00:52]} Bg4 {[%clk 01:12:36]} {[%emt 00:10:53]} 14.
Qc2 {[%clk 01:24:00]} {[%emt 00:05:22]} Nh5 {[%clk 01:04:12]} {[%emt 00:08:54]}
15. Bxd6 {[%clk 01:20:36]} {[%emt 00:03:54]} Qxd6 {[%clk 01:04:35]} {[%emt
00:00:07]} 16. Nd2 {[%clk 01:20:41]} {[%emt 00:00:34]} Bxe2 {[%clk 01:01:25]}
{[%emt 00:03:32]} 17. Bxe2 {[%clk 01:21:05]} {[%emt 00:00:09]} Nhf6 {[%clk
01:01:42]} {[%emt 00:00:10]} 18. Rab1 {[%clk 01:15:24]} {[%emt 00:06:14]} Rfe8
{[%clk 00:57:55]} {[%emt 00:04:14]} 19. Rfc1 {[%clk 01:14:42]} {[%emt
00:01:12]} g6 {[%clk 00:47:20]} {[%emt 00:11:06]} 20. b5 {[%clk 01:13:50]}
{[%emt 00:01:21]} cxb5 {[%clk 00:46:05]} {[%emt 00:01:45]} 21. axb5 {[%clk
01:14:15]} {[%emt 00:00:06]} a5 {[%clk 00:46:13]} {[%emt 00:00:22]} 22. Qa2
{[%clk 01:04:21]} {[%emt 00:10:23]} Rec8 {[%clk 00:24:51]} {[%emt 00:21:56]} 23.
Rxc8+ {[%clk 01:03:53]} {[%emt 00:00:58]} Rxc8 {[%clk 00:24:57]} {[%emt
00:00:19]} 24. Qxa5 {[%clk 01:04:16]} {[%emt 00:00:07]} Rc2 {[%clk 00:25:13]}
{[%emt 00:00:15]} 25. Bd3 {[%clk 01:04:28]} {[%emt 00:00:18]} Rc8 {[%clk
00:23:08]} {[%emt 00:02:38]} 26. h3 {[%clk 00:54:52]} {[%emt 00:12:24]} Kg7
{[%clk 00:21:20]} 27. Nb3 {[%clk 00:53:54]} {[%emt 00:01:24]} b6 {[%clk
00:20:33]} {[%emt 00:01:17]} 28. Qa1 {[%clk 00:52:07]} {[%emt 00:07:22]} h5
{[%clk 00:18:00]} 29. Rc1 {[%clk 00:51:36]} Rxc1+ {[%clk 00:18:16]} 30. Qxc1
{[%clk 00:52:05]} Qb4 {[%clk 00:18:07]} 31. Nd2 {[%clk 00:51:40]} {[%emt
00:00:48]} Qa5 {[%clk 00:12:58]} {[%emt 00:05:39]} 32. Nf3 {[%clk 00:51:18]}
{[%emt 00:00:53]} Qb4 {[%clk 00:11:45]} {[%emt 00:01:49]} 33. Qc6 {[%clk
00:49:52]} {[%emt 00:01:49]} Qa3 {[%clk 00:09:58]} {[%emt 00:02:17]} 34. Bf1
{[%clk 00:48:23]} {[%emt 00:02:03]} Qb2 {[%clk 00:09:51]} {[%emt 00:00:39]} 35.
Ne1 {[%clk 00:45:31]} {[%emt 00:03:16]} Qa1 {[%clk 00:09:03]} {[%emt 00:01:18]}
36. Nd3 {[%clk 00:45:32]} {[%emt 00:00:29]} Ne4 {[%clk 00:07:30]} {[%emt
00:02:09]} 37. Qc2 {[%clk 00:42:21]} {[%emt 00:03:34]} Ndf6 {[%clk 00:06:20]}
{[%emt 00:01:58]} 38. Nb2 {[%clk 00:37:37]} {[%emt 00:04:56]} Qe1 {[%clk
00:05:13]} {[%emt 00:01:39]} 39. Qe2 {[%clk 00:32:37]} {[%emt 00:05:27]} Qa1
{[%clk 00:04:15]} {[%emt 00:01:37]} 40. Nd3 {[%clk 00:29:19]} {[%emt 00:03:40]}
Qb1 {[%clk 00:03:06]} {[%emt 00:01:43]} 41. Qb2 {[%clk 00:23:50]} {[%emt
00:05:55]} Qd1 {[%clk 00:02:49]} {[%emt 00:01:41]} 42. Qc1 {[%clk 00:15:19]}
{[%emt 00:08:54]} Qb3 {[%clk 00:02:00]} {[%emt 00:01:17]} 43. Qc7 {[%clk
00:05:47]} {[%emt 00:10:02]} Qxb5 {[%clk 00:25:42]} {[%emt 00:06:47]} 44. Ne5
{[%clk 00:32:41]} {[%emt 00:03:37]} Qe8 {[%clk 00:26:02]} {[%emt 00:00:11]} 45.
Qxb6 {[%clk 00:32:57]} {[%emt 00:00:13]} Qc8 {[%clk 00:23:45]} {[%emt
00:02:47]} 46. Qa7 {[%clk 00:32:49]} {[%emt 00:00:38]} Qe6 {[%clk 00:22:44]}
{[%emt 00:01:33]} 47. Bd3 {[%clk 00:32:04]} {[%emt 00:01:16]} Kg8 {[%clk
00:22:03]} {[%emt 00:01:07]} 48. Qb8+ {[%clk 00:32:01]} {[%emt 00:00:36]} Kg7
{[%clk 00:22:16]} {[%emt 00:00:15]} 49. Qb7 {[%clk 00:31:56]} {[%emt 00:00:35]}
Kg8 {[%clk 00:18:54]} {[%emt 00:03:59]} 50. Bb1 {[%clk 00:30:37]} {[%emt
00:01:45]} g5 {[%clk 00:15:48]} {[%emt 00:03:35]} 51. f3 {[%clk 00:14:52]}
{[%emt 00:16:15]} Nd6 {[%clk 00:13:47]} {[%emt 00:02:32]} 52. Qc7 {[%clk
00:14:52]} {[%emt 00:00:26]} Nfe8 {[%clk 00:10:03]} {[%emt 00:04:16]} 53. Qc2
{[%clk 00:15:09]} {[%emt 00:00:11]} Nf6 {[%clk 00:09:27]} {[%emt 00:01:07]} 54.
Qd2 {[%clk 00:09:04]} {[%emt 00:06:37]} g4 {[%clk 00:07:23]} {[%emt 00:02:34]}
55. hxg4 {[%clk 00:06:22]} {[%emt 00:03:08]} hxg4 {[%clk 00:07:45]} {[%emt
00:00:08]} 56. Qf2 {[%clk 00:06:22]} {[%emt 00:00:34]} gxf3 {[%clk 00:06:27]}
{[%emt 00:01:47]} 57. Qg3+ {[%clk 00:06:40]} {[%emt 00:00:11]} Kf8 {[%clk
00:06:42]} {[%emt 00:00:13]} 58. gxf3 {[%clk 00:07:05]} {[%emt 00:00:08]} Nf5
{[%clk 00:06:23]} {[%emt 00:00:46]} 59. Qf4 {[%clk 00:07:23]} {[%emt 00:00:13]}
Ne7 {[%clk 00:05:50]} {[%emt 00:01:06]} 60. Bd3 {[%clk 00:05:23]} {[%emt
00:02:27]} Nc6 {[%clk 00:04:35]} {[%emt 00:01:45]} 61. Bf5 {[%clk 00:04:42]}
{[%emt 00:01:11]} Qe8 {[%clk 00:03:07]} {[%emt 00:02:01]} 62. Qh6+ {[%clk
00:04:01]} {[%emt 00:01:08]} Ke7 {[%clk 00:03:33]} {[%emt 00:00:06]} 63. Bd7
{[%clk 00:04:16]} {[%emt 00:00:13]} Qg8+ {[%clk 00:03:28]} {[%emt 00:00:35]} 64.
Bg4 {[%clk 00:03:56]} {[%emt 00:00:49]} Nxe5 65. dxe5 {[%clk 00:04:25]} Ne4
{[%clk 00:01:55]} {[%emt 00:02:10]} 66. Qc6 {[%clk 00:04:30]} {[%emt 00:00:25]}
Qg5 {[%clk 00:01:38]} {[%emt 00:00:47]} 67. Qd7+ {[%clk 00:03:49]} {[%emt
00:01:10]} Kf8 {[%clk 00:02:04]} {[%emt 00:00:04]} 68. fxe4 {[%clk 00:04:16]}
{[%emt 00:00:06]} Qxe3+ {[%clk 00:02:28]} {[%emt 00:00:05]} 69. Kh2 {[%clk
00:04:36]} {[%emt 00:00:09]} Qf4+ {[%clk 00:01:53]} {[%emt 00:01:04]} 70. Kh3
{[%clk 00:04:41]} {[%emt 00:00:25]} Qe3+ {[%clk 00:01:15]} {[%emt 00:01:08]} 71.
Kh4 {[%clk 00:04:40]} {[%emt 00:00:36]} Qh6+ {[%clk 00:00:37]} {[%emt
00:01:03]} 72. Bh5 {[%clk 00:04:28]} {[%emt 00:00:42]} Qf4+ {[%clk 00:01:04]}
{[%emt 00:00:05]} 73. Qg4 {[%clk 00:03:39]} {[%emt 00:01:18]} Qxe5 {[%clk
00:01:10]} {[%emt 00:00:25]} 74. exd5 {[%clk 00:01:54]} {[%emt 00:02:13]} Qxd5
{[%clk 00:01:30]} {[%emt 00:00:10]} 75. Qg5 {[%clk 00:02:18]} {[%emt 00:00:06]}
Qxg5+ {[%clk 00:01:56]} {[%emt 00:00:06]} 76. Kxg5 {[%clk 00:02:45]} {[%emt
00:00:04]} f6+ {[%clk 00:02:19]} {[%emt 00:00:06]} 77. Kf5 {[%clk 00:03:13]}
{[%emt 00:00:04]} Kg7 {[%clk 00:02:44]} {[%emt 00:00:04]} 78. Bg6 {[%clk
00:03:40]} {[%emt 00:00:04]} Kh8 {[%clk 00:03:08]} {[%emt 00:00:05]} 79. Kxf6
{[%clk 00:04:08]} {[%emt 00:00:05]} 1/2-1/2

[Event "Chess Festival Groningen 2023 | A"]
[Site "Groningen, Netherlands"]
[Date "2023.12.28"]
[Round "7.23"]
[White "Albers, Sasa"]
[Black "Arnold, Rhys"]
[Result "1-0"]
[TimeControl "90min/40moves + 30min + 30sec/move"]
[WhiteElo "2192"]
[BlackElo "2053"]

1. e4 {[%clk 01:30:57]} {[%emt 00:00:05]} c5 {[%clk 01:30:48]} {[%emt
00:00:12]} 2. Nf3 {[%clk 01:31:23]} {[%emt 00:00:11]} Nc6 {[%clk 01:31:14]} 3.
d4 {[%clk 01:31:41]} {[%emt 00:00:10]} cxd4 {[%clk 01:31:40]} {[%emt 00:00:18]}
4. Nxd4 {[%clk 01:32:05]} Nf6 {[%clk 01:31:02]} {[%emt 00:01:10]} 5. Nc3 {[%clk
01:32:28]} e5 {[%clk 01:31:30]} 6. Ndb5 {[%clk 01:32:51]} {[%emt 00:00:07]} d6
{[%clk 01:31:58]} 7. Bg5 {[%clk 01:33:09]} {[%emt 00:00:16]} a6 {[%clk
01:32:24]} 8. Na3 {[%clk 01:33:33]} {[%emt 00:00:15]} b5 {[%clk 01:32:49]} 9.
Nd5 {[%clk 01:33:59]} Be7 {[%clk 01:33:15]} {[%emt 00:00:04]} 10. Bxf6 {[%clk
01:34:21]} {[%emt 00:00:12]} Bxf6 {[%clk 01:33:42]} 11. c4 {[%clk 01:34:41]}
{[%emt 00:00:06]} b4 {[%clk 01:34:03]} {[%emt 00:00:23]} 12. Nc2 {[%clk
01:35:06]} O-O {[%clk 01:34:30]} 13. g3 {[%clk 01:35:19]} {[%emt 00:00:39]} Bg5
{[%clk 01:33:16]} {[%emt 00:01:42]} 14. h4 {[%clk 01:34:43]} {[%emt 00:00:38]}
Bh6 {[%clk 01:33:40]} {[%emt 00:00:09]} 15. g4 {[%clk 01:27:16]} {[%emt
00:07:57]} Bf4 {[%clk 01:27:52]} {[%emt 00:06:16]} 16. Qf3 {[%clk 01:13:40]}
{[%emt 00:14:12]} Be6 {[%clk 01:03:45]} {[%emt 00:24:29]} 17. Be2 {[%clk
01:12:55]} {[%emt 00:01:21]} a5 {[%clk 00:56:33]} {[%emt 00:08:17]} 18. Nxf4
{[%clk 01:07:18]} {[%emt 00:05:26]} exf4 {[%clk 00:57:00]} {[%emt 00:00:38]} 19.
Qxf4 {[%clk 01:07:34]} {[%emt 00:00:10]} a4 {[%clk 00:53:51]} {[%emt 00:03:08]}
20. Rd1 {[%clk 01:02:17]} {[%emt 00:06:18]} b3 {[%clk 00:48:50]} {[%emt
00:05:08]} 21. axb3 {[%clk 01:02:36]} {[%emt 00:00:07]} axb3 {[%clk 00:49:16]}
{[%emt 00:00:21]} 22. Ne3 {[%clk 01:02:14]} {[%emt 00:00:32]} Ne5 {[%clk
00:48:33]} {[%emt 00:01:42]} 23. O-O {[%clk 00:54:15]} {[%emt 00:08:05]} Rc8
{[%clk 00:40:08]} {[%emt 00:08:49]} 24. Rd4 {[%clk 00:41:04]} {[%emt 00:13:41]}
Qxh4 {[%clk 00:37:53]} {[%emt 00:02:48]} 25. Rfd1 {[%clk 00:33:14]} {[%emt
00:09:00]} g5 {[%clk 00:27:54]} {[%emt 00:09:46]} 26. Qf6 {[%clk 00:26:17]}
{[%emt 00:08:05]} Nd7 {[%clk 00:24:30]} {[%emt 00:03:40]} 27. Qe7 {[%clk
00:24:40]} {[%emt 00:01:52]} Ne5 {[%clk 00:20:00]} {[%emt 00:05:21]} 28. Qxd6
{[%clk 00:18:10]} {[%emt 00:06:54]} Nc6 {[%clk 00:16:43]} {[%emt 00:03:27]} 29.
Rd5 {[%clk 00:14:23]} {[%emt 00:04:14]} Rfd8 {[%clk 00:14:11]} {[%emt
00:03:02]} 30. Qc5 {[%clk 00:14:19]} {[%emt 00:00:33]} Bxd5 {[%clk 00:13:30]}
{[%emt 00:01:11]} 31. Nf5 {[%clk 00:12:30]} {[%emt 00:02:18]} Qh3 {[%clk
00:13:55]} {[%emt 00:00:14]} 32. Rxd5 {[%clk 00:12:15]} {[%emt 00:00:54]} Rxd5
{[%clk 00:12:59]} {[%emt 00:01:08]} 33. exd5 {[%clk 00:11:27]} {[%emt
00:01:18]} Ra8 {[%clk 00:13:12]} {[%emt 00:00:17]} 34. Ne3 {[%clk 00:04:44]}
{[%emt 00:07:13]} Ne5 {[%clk 00:13:16]} {[%emt 00:00:46]} 35. d6 {[%clk
00:04:51]} {[%emt 00:00:05]} Nf3+ {[%clk 00:09:21]} {[%emt 00:04:23]} 36. Bxf3
{[%clk 00:05:10]} {[%emt 00:00:10]} Qxf3 {[%clk 00:09:49]} {[%emt 00:00:33]} 37.
Qxg5+ {[%clk 00:05:19]} {[%emt 00:00:10]} Kh8 {[%clk 00:10:12]} 38. d7 {[%clk
00:04:09]} {[%emt 00:01:30]} Ra1+ {[%clk 00:03:28]} {[%emt 00:07:32]} 39. Nf1
{[%clk 00:04:38]} Rxf1+ {[%clk 00:03:53]} {[%emt 00:00:09]} 40. Kxf1 {[%clk
00:04:59]} Qd1+ {[%clk 00:04:20]} 41. Kg2 {[%clk 00:05:19]} {[%emt 00:00:05]}
Qxd7 {[%clk 00:04:48]} 42. f3 {[%clk 00:30:13]} {[%emt 00:05:31]} Qd4 {[%clk
00:32:22]} {[%emt 00:02:54]} 43. Qc1 {[%clk 00:27:21]} {[%emt 00:03:30]} Qd3
{[%clk 00:27:22]} {[%emt 00:05:59]} 44. Kg3 {[%clk 00:27:20]} {[%emt 00:00:09]}
Qc2 {[%clk 00:23:55]} {[%emt 00:03:42]} 45. Qh6 {[%clk 00:27:42]} {[%emt
00:00:41]} Kg8 {[%clk 00:24:23]} 46. Qg5+ {[%clk 00:28:01]} {[%emt 00:00:10]}
Kf8 {[%clk 00:23:54]} {[%emt 00:00:30]} 47. Qd8+ {[%clk 00:27:59]} {[%emt
00:00:33]} Kg7 {[%clk 00:24:20]} {[%emt 00:00:05]} 48. Qd4+ {[%clk 00:28:23]}
{[%emt 00:00:09]} Kg8 {[%clk 00:24:41]} {[%emt 00:00:04]} 49. c5 {[%clk
00:28:15]} {[%emt 00:01:13]} Qc1 {[%clk 00:23:51]} {[%emt 00:00:47]} 50. Qe5
{[%clk 00:25:10]} {[%emt 00:03:31]} h6 {[%clk 00:20:46]} {[%emt 00:03:36]} 51.
Qd4 {[%clk 00:22:48]} {[%emt 00:02:54]} Qe1+ {[%clk 00:15:05]} {[%emt
00:06:08]} 52. Kf4 {[%clk 00:22:55]} {[%emt 00:00:47]} Qe6 {[%clk 00:13:00]}
{[%emt 00:02:17]} 53. Qc3 {[%clk 00:19:12]} {[%emt 00:04:37]} Kh7 {[%clk
00:08:19]} {[%emt 00:04:56]} 54. c6 {[%clk 00:19:02]} {[%emt 00:00:28]} Qd6+
{[%clk 00:08:44]} {[%emt 00:00:05]} 55. Ke3 {[%clk 00:19:09]} {[%emt 00:01:00]}
Qe7+ {[%clk 00:08:02]} {[%emt 00:00:33]} 56. Kd2 {[%clk 00:18:55]} {[%emt
00:00:49]} Qg5+ {[%clk 00:08:25]} {[%emt 00:00:04]} 57. Ke2 {[%clk 00:18:13]}
{[%emt 00:01:08]} Qe7+ {[%clk 00:07:18]} {[%emt 00:01:42]} 58. Qe3 {[%clk
00:11:39]} {[%emt 00:06:58]} Qc7 {[%clk 00:07:26]} {[%emt 00:00:51]} 59. Qxb3
{[%clk 00:11:33]} {[%emt 00:00:32]} Qxc6 {[%clk 00:05:28]} {[%emt 00:02:24]} 60.
Qxf7+ {[%clk 00:11:54]} {[%emt 00:00:25]} Kh8 {[%clk 00:05:56]} 61. Qf8+ {[%clk
00:11:07]} {[%emt 00:00:42]} Kh7 {[%clk 00:06:22]} {[%emt 00:00:29]} 62. Qe7+
{[%clk 00:11:11]} {[%emt 00:00:04]} Kg8 {[%clk 00:06:29]} {[%emt 00:00:42]} 63.
b4 {[%clk 00:10:49]} {[%emt 00:00:57]} Qc2+ {[%clk 00:06:50]} 64. Ke3 {[%clk
00:11:00]} {[%emt 00:00:10]} Qc1+ {[%clk 00:07:03]} {[%emt 00:00:28]} 65. Kf2
{[%clk 00:11:12]} {[%emt 00:00:13]} Qh1 {[%emt 00:03:16]} 66. Qe8+ {[%emt
00:00:17]} Kh7 {[%emt 00:00:46]} 67. Qd7+ {[%clk 00:08:50]} Kg8 {[%clk
00:07:13]} {[%emt 00:00:08]} 68. Qd5+ {[%clk 00:09:02]} {[%emt 00:00:18]} Kh7
{[%clk 00:07:34]} {[%emt 00:00:32]} 69. b5 {[%clk 00:09:16]} {[%emt 00:00:10]}
Qh2+ {[%clk 00:07:54]} {[%emt 00:00:05]} 70. Ke3 {[%clk 00:09:24]} {[%emt
00:00:17]} Qg1+ {[%clk 00:08:22]} {[%emt 00:00:10]} 71. Kf4 {[%clk 00:09:15]}
{[%emt 00:00:22]} Qc1+ {[%clk 00:08:44]} {[%emt 00:00:35]} 72. Ke5 {[%clk
00:09:33]} {[%emt 00:00:09]} Kg6 {[%clk 00:07:56]} {[%emt 00:00:55]} 73. Qg8+
{[%emt 00:01:52]} 1-0

[Event "Chess Festival Groningen 2023 | A"]
[Site "Groningen, Netherlands"]
[Date "2023.12.28"]
[Round "7.24"]
[White "Boer, Alef"]
[Black "Nicolai, Amir"]
[Result "1-0"]
[TimeControl "90min/40moves + 30min + 30sec/move"]
[WhiteElo "2017"]
[BlackElo "2156"]

1. e4 {[%clk 01:30:57]} e5 {[%clk 01:30:52]} 2. Nf3 {[%clk 01:31:16]} {[%emt
00:00:09]} Nc6 {[%clk 01:31:18]} 3. Bb5 {[%clk 01:31:40]} a6 {[%clk 01:31:42]}
{[%emt 00:00:04]} 4. Ba4 {[%clk 01:32:05]} Nf6 {[%clk 01:32:07]} {[%emt
00:00:27]} 5. d3 {[%clk 01:32:26]} b5 {[%clk 01:31:36]} {[%emt 00:00:44]} 6.
Bb3 {[%clk 01:32:49]} {[%emt 00:00:37]} Bc5 {[%clk 01:32:02]} 7. Nc3 {[%clk
01:32:42]} {[%emt 00:00:40]} d6 {[%clk 01:28:52]} {[%emt 00:03:10]} 8. Nd5
{[%clk 01:29:22]} {[%emt 00:03:50]} h6 {[%clk 01:26:11]} {[%emt 00:03:10]} 9.
c3 {[%clk 01:29:42]} {[%emt 00:00:28]} O-O {[%clk 01:24:55]} {[%emt 00:02:15]}
10. O-O {[%clk 01:22:12]} {[%emt 00:07:13]} Rb8 {[%clk 01:17:24]} {[%emt
00:08:03]} 11. h3 {[%clk 01:20:01]} {[%emt 00:02:40]} Nxd5 {[%clk 01:14:12]}
{[%emt 00:04:04]} 12. Bxd5 {[%clk 01:18:47]} {[%emt 00:01:23]} Ne7 {[%clk
01:14:33]} {[%emt 00:00:09]} 13. Bb3 {[%clk 01:19:01]} {[%emt 00:00:52]} Ng6
{[%clk 01:14:27]} 14. d4 {[%clk 01:18:13]} {[%emt 00:01:17]} exd4 {[%clk
01:14:05]} {[%emt 00:00:55]} 15. cxd4 {[%clk 01:05:01]} {[%emt 00:01:10]} Bb6
16. Re1 {[%emt 00:18:29]} Re8 {[%emt 00:09:24]} 17. Bd5 {[%clk 00:43:11]}
{[%emt 00:13:31]} Qf6 18. Bc6 {[%clk 00:43:24]} {[%emt 00:13:50]} Rd8 19. a4
{[%clk 00:41:36]} {[%emt 00:07:31]} Bd7 {[%clk 00:50:06]} 20. axb5 {[%clk
00:40:25]} axb5 21. Bxd7 {[%emt 00:01:50]} Rxd7 {[%emt 00:02:32]} 22. d5 {[%clk
00:37:12]} {[%emt 00:01:14]} Ne5 {[%clk 00:44:04]} {[%emt 00:05:04]} 23. Ra2
{[%clk 00:34:36]} {[%emt 00:03:25]} Re7 {[%clk 00:39:38]} {[%emt 00:04:57]} 24.
b3 {[%clk 00:32:50]} {[%emt 00:01:42]} Rbe8 {[%clk 00:36:08]} {[%emt 00:04:00]}
25. Nh2 {[%clk 00:20:54]} {[%emt 00:12:25]} Nd7 {[%clk 00:33:39]} {[%emt
00:03:00]} 26. Rae2 {[%clk 00:19:00]} {[%emt 00:02:24]} Qg6 {[%clk 00:24:43]}
{[%emt 00:09:25]} 27. Qd3 {[%clk 00:13:56]} {[%emt 00:05:43]} b4 {[%clk
00:22:01]} {[%emt 00:03:04]} 28. Qc4 {[%clk 00:12:33]} {[%emt 00:01:53]} Nc5
{[%clk 00:21:55]} {[%emt 00:00:49]} 29. Be3 {[%clk 00:03:33]} {[%emt 00:09:16]}
Qxe4 {[%clk 00:15:44]} {[%emt 00:06:41]} 30. Bd4 {[%clk 00:02:18]} {[%emt
00:01:50]} Qxe2 {[%clk 00:15:57]} {[%emt 00:00:14]} 31. Rxe2 {[%clk 00:02:42]}
{[%emt 00:00:08]} Rxe2 {[%clk 00:16:24]} {[%emt 00:00:04]} 32. Be3 {[%clk
00:02:32]} {[%emt 00:00:39]} Re1+ {[%clk 00:13:21]} {[%emt 00:03:29]} 33. Nf1
{[%clk 00:03:00]} {[%emt 00:00:56]} Ra8 {[%clk 00:12:41]} {[%emt 00:00:44]} 34.
Kh2 {[%clk 00:03:07]} Ra2 {[%clk 00:09:33]} {[%emt 00:03:35]} 35. Ng3 {[%clk
00:03:05]} {[%emt 00:00:51]} Nd7 {[%clk 00:04:52]} {[%emt 00:05:00]} 36. Qxb4
{[%clk 00:02:55]} {[%emt 00:00:30]} Rd1 {[%clk 00:04:07]} {[%emt 00:01:14]} 37.
Qg4 {[%clk 00:02:35]} {[%emt 00:00:58]} 1-0

[Event "Chess Festival Groningen 2023 | A"]
[Site "Groningen, Netherlands"]
[Date "2023.12.28"]
[Round "7.25"]
[White "Van Rootselaar, Rik"]
[Black "Adamovics, Aleksejs"]
[Result "1-0"]
[TimeControl "90min/40moves + 30min + 30sec/move"]
[WhiteElo "2105"]
[BlackElo "2015"]

1. d4 {[%clk 01:30:52]} {[%emt 00:00:28]} Nf6 {[%clk 01:30:53]} {[%emt
00:00:13]} 2. c4 {[%clk 01:31:05]} e6 {[%clk 01:31:11]} {[%emt 00:00:17]} 3. g3
{[%clk 01:30:57]} {[%emt 00:00:30]} c5 {[%clk 01:31:33]} {[%emt 00:00:05]} 4.
d5 {[%clk 01:30:40]} {[%emt 00:00:47]} exd5 {[%clk 01:31:51]} {[%emt 00:00:26]}
5. cxd5 {[%clk 01:31:02]} d6 {[%clk 01:32:12]} {[%emt 00:00:05]} 6. Bg2 {[%clk
01:31:06]} {[%emt 00:00:57]} g6 {[%clk 01:32:29]} 7. Nf3 {[%clk 01:31:07]}
{[%emt 00:00:08]} Bg7 {[%clk 01:32:49]} {[%emt 00:00:10]} 8. O-O {[%clk
01:30:43]} {[%emt 00:01:27]} O-O {[%clk 01:33:13]} 9. Nc3 {[%clk 01:30:15]}
{[%emt 00:00:29]} Na6 {[%clk 01:32:38]} {[%emt 00:01:35]} 10. Re1 {[%clk
01:29:00]} {[%emt 00:01:14]} Nc7 {[%clk 01:31:52]} {[%emt 00:01:17]} 11. a4
{[%clk 01:27:59]} {[%emt 00:01:31]} Rb8 {[%clk 01:26:06]} {[%emt 00:06:17]} 12.
e4 {[%clk 01:26:57]} {[%emt 00:01:34]} Bg4 {[%clk 01:20:13]} {[%emt 00:06:19]}
13. Bf4 {[%clk 01:25:38]} {[%emt 00:01:48]} Nh5 {[%clk 01:17:28]} {[%emt
00:03:16]} 14. Be3 {[%clk 01:21:50]} {[%emt 00:04:18]} Qd7 {[%clk 01:15:33]}
{[%emt 00:03:00]} 15. Qd3 {[%clk 00:58:16]} {[%emt 00:23:44]} b6 {[%clk
01:00:50]} {[%emt 00:15:33]} 16. Nd2 {[%clk 00:56:22]} {[%emt 00:01:54]} Bh3
{[%clk 00:52:39]} {[%emt 00:09:07]} 17. Bxh3 {[%clk 00:51:42]} {[%emt
00:04:39]} Qxh3 {[%clk 00:53:07]} {[%emt 00:00:39]} 18. f3 {[%clk 00:49:13]}
{[%emt 00:02:26]} Qd7 {[%clk 00:49:04]} {[%emt 00:04:32]} 19. g4 {[%clk
00:48:46]} {[%emt 00:00:53]} Nf6 {[%clk 00:47:38]} {[%emt 00:01:56]} 20. Bf4
{[%clk 00:48:20]} {[%emt 00:00:57]} Nfe8 {[%clk 00:43:06]} {[%emt 00:05:23]} 21.
Nc4 {[%clk 00:46:51]} {[%emt 00:02:02]} Bd4+ {[%clk 00:41:44]} {[%emt
00:01:28]} 22. Kh1 {[%clk 00:46:33]} {[%emt 00:00:52]} f6 {[%clk 00:40:29]}
{[%emt 00:01:41]} 23. Ne2 {[%clk 00:40:12]} {[%emt 00:06:51]} Be5 {[%clk
00:38:42]} {[%emt 00:02:17]} 24. Bh6 {[%clk 00:39:45]} {[%emt 00:00:56]} Rf7
{[%clk 00:36:46]} {[%emt 00:03:01]} 25. f4 {[%clk 00:38:48]} {[%emt 00:00:52]}
Bd4 {[%clk 00:37:04]} {[%emt 00:00:41]} 26. Nxd4 {[%clk 00:38:15]} {[%emt
00:01:19]} cxd4 {[%clk 00:37:33]} 27. h3 {[%clk 00:36:41]} Na6 {[%clk
00:34:48]} {[%emt 00:04:35]} 28. Qxd4 {[%clk 00:35:58]} Nc5 {[%clk 00:32:45]}
{[%emt 00:04:09]} 29. Rad1 {[%clk 00:34:20]} Qxa4 {[%clk 00:29:43]} {[%emt
00:05:23]} 30. e5 {[%emt 00:05:05]} fxe5 {[%clk 00:24:00]} {[%emt 00:04:51]} 31.
fxe5 {[%clk 00:31:06]} Rf3 {[%clk 00:24:30]} 32. Kg2 {[%clk 00:31:06]} Qb3
{[%clk 00:24:00]} 33. Re3 {[%clk 00:31:06]} Rxe3 {[%clk 00:24:00]} 34. Nxe3
{[%clk 00:31:06]} Qa4 {[%clk 00:24:00]} 35. b4 {[%emt 00:18:22]} Nb3 36. Qf4
{[%clk 00:25:20]} {[%emt 00:01:13]} Ng7 {[%clk 00:15:17]} {[%emt 00:01:22]} 37.
Rf1 {[%clk 00:25:13]} {[%emt 00:00:08]} Qe8 {[%clk 00:15:08]} {[%emt 00:00:34]}
38. e6 {[%clk 00:21:58]} {[%emt 00:03:46]} Rd8 {[%clk 00:12:14]} {[%emt
00:03:25]} 39. Qf7+ {[%clk 00:21:48]} {[%emt 00:00:39]} Qxf7 {[%clk 00:12:37]}
{[%emt 00:00:15]} 40. Rxf7 {[%clk 00:22:13]} 1-0